fUST/lending_fUST_20241023
["ID","MTS","AMOUNT","RATE_DAILY","PERIOD"]
[340662281,1729615839044,-500.0,0.00013974,2]
[340662282,1729615839054,-1000.0,0.00013974,2]
[340662283,1729615839063,-985.000847,0.00013974,2]
[340662284,1729615839073,-420.0,0.00014054,2]
[340662285,1729615839084,-420.0,0.00014094,2]
[340662286,1729615839094,-1500.0,0.00014375,2]
[340662287,1729615839105,-1500.0,0.00014375,2]
[340662288,1729615839120,-1500.0,0.00014375,2]
[340662289,1729615839131,-895.840329,0.00014384,2]
[340662290,1729615839142,-184.24778218,0.00014743,2]
[340662291,1729615839152,-210.744449,0.00014778,2]
[340662292,1729615839161,-2000.0,0.00014843,2]
[340662293,1729615839172,-1858.22985991,0.00014843,2]
[340662294,1729615839181,-2000.0,0.00014843,2]
[340662295,1729615839191,-210.744449,0.00014878,2]
[340662296,1729615839201,-150.05206756,0.00015,2]
[340662297,1729615839211,-895.840329,0.00015068,2]
[340662298,1729615839226,-223.0,0.0001512,2]
[340662299,1729615839235,-184.24778218,0.00015257,2]
[340662300,1729615839246,-2500.0,0.00015361,2]
[340662301,1729615839256,-2500.0,0.00015361,2]
[340662302,1729615839266,-587.0,0.00015416,2]
[340662303,1729615839276,-587.0,0.00015504,2]
[340662304,1729615839286,-517.0214837,0.00015728,2]
[340662305,1729615839296,-500.0,0.00015728,2]
[340662306,1729615839306,-256.92226941,0.00015728,2]
[340662307,1729615839316,-619.15998154,0.00015728,2]
[340662308,1729615839326,-294.11545237,0.00015728,2]
[340662309,1729615839337,-500.0,0.00015728,2]
[340662310,1729615839347,-500.0,0.00015728,2]
[340662311,1729615839357,-6438.89871086,0.00015729,2]
[340662312,1729615839367,-11933.85289441,0.0001575,2]
[340662313,1729615839377,-184.24778218,0.0001577,2]
[340662314,1729615839387,-128241.678996,0.0001577,2]
[340662315,1729615839397,-41189.0829997,0.0001578,2]
[340662316,1729615839407,-135044.72022648,0.0001584,2]
[340662318,1729615839422,-21832.5373741,0.0001584,2]
[340662320,1729615839431,-108667.4626259,0.0001587,2]
[340662322,1729615839448,-147815.8953661,0.0001587,2]
[340662323,1729615839458,-603.3637597,0.00015873,2]
[340662324,1729615839467,-168.65502454,0.00015873,2]
[340662325,1729615839477,-500.0,0.00015873,2]
[340662326,1729615839486,-161.83240299,0.00015873,2]
[340662327,1729615839496,-500.0,0.00015873,2]
[340662328,1729615839506,-500.0,0.00015873,2]
[340662329,1729615839515,-200.81363765,0.00015873,2]
[340662330,1729615839525,-152.55901739,0.00015873,2]
[340662331,1729615839536,-500.0,0.00015873,2]
[340662332,1729615839545,-82378.1659993,0.0001588,2]
[340662333,1729615839555,-1720.02687663,0.0001589,2]
[340662334,1729615839565,-250.0,0.0001589,2]
[340662335,1729615839576,-150.112233,0.000159,2]
[340662336,1729615839588,-279.248581,0.000159,2]
[340662337,1729615839598,-662.7348034,0.0001592,2]
[340662338,1729615839611,-3000.0,0.0001592,2]
[340662339,1729615839621,-151.0,0.0001595,2]
[340662340,1729615839631,-151.0,0.0001595,2]
[340662341,1729615839642,-250.03972,0.0001595,2]
[340662342,1729615839653,-250.03972,0.0001595,2]
[340662343,1729615839663,-151.0,0.0001595,2]
[340662344,1729615839673,-8214.15574239,0.00015951,2]
[340662345,1729615839685,-1801.32620228,0.00015951,2]
[340662348,1729615839877,-118226.19705133,0.00015951,2]
[340662349,1729615839887,-88265.82307099,0.0001596,2]
[340662350,1729615839899,-529.21758443,0.0001596,2]
[340662351,1729615839924,-34772.20834358,0.0001596,2]
[340662352,1729615839945,-41189.0829997,0.0001597,2]
[340662353,1729615839955,-500.0,0.00015973,2]
[340662354,1729615839965,-500.0,0.00015973,2]
[340662355,1729615839975,-500.0,0.00015973,2]
[340662356,1729615839985,-500.0,0.00015973,2]
[340662357,1729615839995,-500.0,0.00015973,2]
[340662358,1729615840005,-167.94795725,0.00015973,2]
[340662359,1729615840015,-500.0,0.00015973,2]
[340662360,1729615840025,-500.0,0.00015973,2]
[340662361,1729615840037,-151.0,0.00015973,2]
[340662362,1729615840049,-190.309951,0.00015973,2]
[340662363,1729615840059,-250.03972,0.00015973,2]
[340662364,1729615840070,-250.03972,0.00015973,2]
[340662365,1729615840081,-151.0,0.00015973,2]
[340662366,1729615840091,-151.0,0.0001599,2]
[340662367,1729615840102,-151.0,0.0001599,2]
[340662368,1729615840114,-258.064052,0.0001599,2]
[340662369,1729615840123,-258.064052,0.0001599,2]
[340662370,1729615840133,-592.165966,0.0001599,2]
[340662371,1729615840142,-592.165966,0.0001599,2]
[340662372,1729615840152,-658.16442438,0.00015999,2]
[340662373,1729615840162,-315201.65138227,0.00016,2]
[340662442,1729615845874,-151.0,0.0001595,2]
[340662444,1729615845884,-151.0,0.00015973,2]
[340662445,1729615845894,-152.7,0.00015999,2]
[340662447,1729615845907,-505.46442437,0.00015999,2]
[340662449,1729615845917,-304389.79013472,0.00016,2]
[340662452,1729615845930,-619.72788326,0.00016,2]
[340662581,1729616130131,4064.98462391,0.00022,60]
[340663050,1729617038400,-300.0,0.00013172,2]
[340663052,1729617038410,-300.0,0.00013172,2]
[340663054,1729617038420,-166.666667,0.00013426,2]
[340663056,1729617038430,-193.96765258,0.000136,2]
[340663058,1729617038440,-1884.24936502,0.00013699,2]
[340663226,1729617040105,-24900.0,0.00013621,2]
[340663229,1729617040115,-141.82567498,0.00013699,2]
[340663230,1729617040124,-1783.455201,0.00013699,2]
[340663232,1729617040134,-166.666667,0.00013776,2]
[340663234,1729617040144,-987.13700477,0.00013874,2]
[340663236,1729617040154,-494.13697353,0.00013874,2]
[340663238,1729617040163,-400.0,0.00013973,2]
[340663240,1729617040175,-166.666667,0.00014126,2]
[340663243,1729617040185,-365.86018916,0.00014381,2]
[340663244,1729617040195,-500.0,0.00014381,2]
[340663247,1729617040206,-500.0,0.00014381,2]
[340663249,1729617040217,-500.0,0.00014381,2]
[340663251,1729617040229,-500.0,0.00014381,2]
[340663253,1729617040240,-500.0,0.00014381,2]
[340663255,1729617040251,-500.0,0.00014381,2]
[340663257,1729617040261,-424.48064686,0.00014381,2]
[340663259,1729617040270,-2026.07504,0.00014384,2]
[340663261,1729617040280,-420.0,0.00014443,2]
[340663263,1729617040290,-420.0,0.00014489,2]
[340663265,1729617040300,-394.45893361,0.00015,2]
[340663267,1729617040311,-2026.07504,0.00015068,2]
[340663269,1729617040320,-227.0,0.0001518,2]
[340663271,1729617040330,-8891.17465365,0.00015622,2]
[340663273,1729617040340,-587.0,0.00015836,2]
[340663275,1729617040351,-1984.62567489,0.0001589,2]
[340663277,1729617040360,-250.0,0.0001589,2]
[340663279,1729617040370,-1364.79692175,0.00015897,7]
[340663281,1729617040380,-20000.0,0.000159,2]
[340663283,1729617040389,-587.0,0.00015938,2]
[340663285,1729617040398,-361.91503859,0.00015969,2]
[340663287,1729617040409,-500.0,0.00015969,2]
[340663289,1729617040418,-179.84558859,0.00015969,2]
[340663291,1729617040428,-433.41198707,0.00015969,2]
[340663293,1729617040438,-255.88081666,0.00015969,2]
[340663295,1729617040448,-500.0,0.00015969,2]
[340663297,1729617040457,-89001.83551417,0.0001597,2]
[340663300,1729617040473,-321.252162,0.0001597,2]
[340663302,1729617040485,-808.88059479,0.0001597,2]
[340667090,1729617704993,157.0,0.00022,60]
[340667114,1729618119036,37087.58595141,0.00021,60]
[340667143,1729618163356,500.0,0.00022,60]
[340667155,1729618178509,151.0,0.00022,60]
[340667186,1729618232240,-300.0,0.00012868,2]
[340667187,1729618232249,-300.0,0.00012868,2]
[340667188,1729618232260,-8507.2610322,0.00012869,2]
[340667189,1729618232314,-14344.95126149,0.00012869,2]
[340667202,1729618238395,-2047.78770631,0.00012869,2]
[340667203,1729618238404,-166.655288,0.00013525,2]
[340667204,1729618238414,-166.655288,0.00013584,2]
[340667205,1729618238424,-166.655288,0.00013643,2]
[340667206,1729618238433,-675.358347,0.00013699,2]
[340667207,1729618238443,-891.7276,0.00013699,2]
[340667208,1729618238453,-166.655288,0.00013702,2]
[340667209,1729618238462,-166.655288,0.0001376,2]
[340667210,1729618238472,-166.655288,0.00013819,2]
[340667211,1729618238482,-131.41895711,0.00013878,2]
[340667233,1729618240253,-35.23633089,0.00013878,2]
[340667234,1729618240262,-154.25226728,0.00013925,2]
[340667235,1729618240271,-166.655288,0.00013937,2]
[340667236,1729618240281,-154.25226728,0.00013954,2]
[340667237,1729618240290,-400.0,0.00013973,2]
[340667238,1729618240299,-166.655288,0.00013995,2]
[340667239,1729618240309,-380.49784965,0.00013999,2]
[340667240,1729618240319,-1221.77743805,0.00014,2]
[340667241,1729618240329,-1375.89357085,0.00014,3]
[340667242,1729618240342,-63670.7615562,0.00014,3]
[340667243,1729618240351,-166.655288,0.00014054,2]
[340667244,1729618240361,-166.655288,0.00014113,2]
[340667245,1729618240371,-420.0,0.00014114,2]
[340667246,1729618240380,-420.0,0.00014155,2]
[340667247,1729618240390,-166.655288,0.00014172,2]
[340667248,1729618240399,-166.655288,0.0001423,2]
[340667249,1729618240409,-675.358347,0.00014384,2]
[340667250,1729618240418,-597.87232014,0.00014525,2]
[340667251,1729618240428,-157.0,0.0001477,2]
[340667252,1729618240438,-500.0,0.00014973,2]
[340667253,1729618240448,-500.0,0.00014973,2]
[340667254,1729618240458,-500.0,0.00014973,2]
[340667255,1729618240468,-504.94221669,0.00014973,2]
[340667256,1729618240477,-361.91503859,0.00014978,2]
[340667257,1729618240487,-500.0,0.00014978,2]
[340667258,1729618240496,-179.84558859,0.00014978,2]
[340667259,1729618240506,-433.41198707,0.00014978,2]
[340667260,1729618240516,-500.0,0.00014978,2]
[340667261,1729618240525,-255.88081666,0.00014978,2]
[340667262,1729618240534,-35740.93645438,0.00014979,2]
[340667263,1729618240546,-10663.10604642,0.00014979,2]
[340667264,1729618240555,-119511.799734,0.00014979,2]
[340667265,1729618240565,-139212.127502,0.0001498,2]
[340667266,1729618240574,-358535.399201,0.0001498,2]
[340667267,1729618240584,-500.0,0.00015,7]
[340667268,1729618240593,-500.0,0.00015,7]
[340667269,1729618240603,-500.0,0.00015,7]
[340667270,1729618240612,-500.0,0.00015,7]
[340667271,1729618240622,-500.0,0.00015,7]
[340667272,1729618240632,-500.0,0.00015,7]
[340667273,1729618240642,-500.0,0.00015,7]
[340667274,1729618240652,-500.0,0.00015,7]
[340667275,1729618240662,-500.0,0.00015,7]
[340667276,1729618240671,-500.0,0.00015,7]
[340667277,1729618240682,-500.0,0.00015,7]
[340667278,1729618240692,-500.0,0.00015,7]
[340667279,1729618240702,-319.84,0.00015,7]
[340667280,1729618240713,-503.47417406,0.00015,3]
[340667281,1729618240722,-675.358347,0.00015068,2]
[340667282,1729618240732,-1017.33238246,0.00015247,2]
[340667283,1729618240742,-1000.0,0.00015247,2]
[340667284,1729618240752,-1000.0,0.00015247,2]
[340667285,1729618240762,-587.0,0.0001548,2]
[340667286,1729618240772,-587.0,0.0001557,2]
[340667287,1729618240782,-165.0873411,0.00015589,2]
[340667288,1729618240792,-1500.0,0.00015647,2]
[340667289,1729618240802,-444.81889202,0.00015647,2]
[340667290,1729618240812,-7625.09248383,0.00015678,2]
[340667291,1729618240821,-1984.62567489,0.0001588,2]
[340667292,1729618240830,-822.67070525,0.0001588,2]
[340667293,1729618240839,-250.0,0.0001589,2]
[340667294,1729618240849,-150.112235,0.000159,2]
[340667295,1729618240859,-2500.0,0.000159,2]
[340667296,1729618240868,-227.0,0.0001593,2]
[340667297,1729618240878,-24126.046779,0.00015931,2]
[340667298,1729618240892,-6254.77048267,0.00015931,2]
[340667315,1729618243399,-0.53648161,0.00015931,2]
[340667318,1729618243411,-2256.7722023,0.00015931,2]
[340667341,1729618246195,-10332.93418872,0.00015931,2]
[340667342,1729618246259,-49837.0248673,0.00015931,2]
[340667343,1729618246269,-230.139,0.0001595,2]
[340667344,1729618246278,-500.0,0.00015973,2]
[340667345,1729618246288,-495.8996441,0.00015973,2]
[340667346,1729618246298,-500.0,0.00015973,2]
[340667347,1729618246308,-500.0,0.00015973,2]
[340667348,1729618246318,-500.0,0.00015973,2]
[340667349,1729618246327,-500.0,0.00015973,2]
[340667350,1729618246336,-151.0,0.0001599,2]
[340667351,1729618246346,-151.0,0.0001599,2]
[340667352,1729618246355,-151.0,0.0001599,2]
[340667353,1729618246364,-151.0,0.0001599,2]
[340667354,1729618246373,-151.0,0.0001599,2]
[340667355,1729618246383,-151.0,0.0001599,2]
[340667356,1729618246392,-151.0,0.0001599,2]
[340667357,1729618246402,-151.0,0.0001599,2]
[340667358,1729618246412,-151.0,0.0001599,2]
[340667359,1729618246421,-151.0,0.0001599,2]
[340667360,1729618246432,-74896.33056136,0.00016,2]
[340667422,1729619440493,-300.0,0.0001335,2]
[340667423,1729619440502,-300.0,0.0001335,2]
[340667424,1729619440513,-24900.0,0.00013351,2]
[340667425,1729619440523,-154.25226729,0.00013405,2]
[340667426,1729619440534,-3000.0,0.00013505,2]
[340667427,1729619440544,-169.624182,0.00013689,2]
[340667428,1729619440554,-373.46097,0.00013699,2]
[340667429,1729619440563,-445.8638,0.00013699,2]
[340667430,1729619440573,-200.0,0.00013973,2]
[340667431,1729619440582,-380.0,0.00013973,2]
[340667432,1729619440592,-814.51829203,0.00013973,2]
[340667433,1729619440601,-373.46097,0.00014384,2]
[340667434,1729619440612,-169.624182,0.00014402,2]
[340667435,1729619440621,-420.0,0.00014635,2]
[340667436,1729619440631,-420.0,0.00014685,2]
[340667437,1729619440640,-9590.46985184,0.00014704,2]
[340667438,1729619440651,-500.0,0.00015,7]
[340667439,1729619440660,-500.0,0.00015,7]
[340667440,1729619440670,-500.0,0.00015,7]
[340667441,1729619440680,-500.0,0.00015,7]
[340667442,1729619440690,-500.0,0.00015,7]
[340667443,1729619440699,-500.0,0.00015,7]
[340667444,1729619440709,-500.0,0.00015,7]
[340667445,1729619440718,-500.0,0.00015,7]
[340667446,1729619440728,-500.0,0.00015,7]
[340667447,1729619440738,-500.0,0.00015,7]
[340667448,1729619440747,-500.0,0.00015,7]
[340667449,1729619440757,-500.0,0.00015,7]
[340667450,1729619440768,-319.84,0.00015,7]
[340667451,1729619440778,-373.46097,0.00015068,2]
[340667452,1729619440787,-2780.88352945,0.00015642,2]
[340667453,1729619440799,-500.00215151,0.00015642,2]
[340667462,1729619443494,-911.3185,0.00015642,2]
[340667471,1729619446511,-4261.6958004,0.00015642,2]
[340667472,1729619446523,-143.02602075,0.00015642,2]
[340667473,1729619446534,-153.0,0.00015753,2]
[340667474,1729619446544,-27.53459269,0.0001589,2]
[340667475,1729619446555,-222.46540731,0.0001589,2]
[340667476,1729619446565,-153.0,0.000159,2]
[340667477,1729619446575,-227.0,0.0001594,2]
[340667478,1729619446585,-2.50624977,0.00015989,7]
[340667479,1729619446596,-396.81107189,0.00015989,7]
[340667480,1729619446608,-355.66427784,0.00015989,7]
[340667483,1729620039566,2000.0,0.00022,60]
[340667547,1729620632727,-222.9319,0.00013767,2]
[340667549,1729620632737,-186.730485,0.00013898,2]
[340667551,1729620632746,-400.0,0.00013973,2]
[340667554,1729620632756,-300.0,0.00014299,2]
[340667556,1729620632765,-300.0,0.00014299,2]
[340667558,1729620632776,-9582.817615,0.000143,2]
[340667598,1729620638987,-1260.41771053,0.000143,2]
[340667605,1729620640684,-380.36253887,0.000143,2]
[340667606,1729620640696,-7748.09045042,0.000143,2]
[340667607,1729620640709,-562.76647442,0.000143,2]
[340667608,1729620640720,-5365.54521076,0.000143,2]
[340667609,1729620640730,-500.0,0.00014999,2]
[340667610,1729620640740,-500.0,0.00014999,2]
[340667611,1729620640749,-414.70417447,0.00014999,2]
[340667612,1729620640758,-500.0,0.00015,7]
[340667613,1729620640767,-500.0,0.00015,7]
[340667614,1729620640777,-500.0,0.00015,7]
[340667615,1729620640787,-500.0,0.00015,7]
[340667616,1729620640796,-500.0,0.00015,7]
[340667617,1729620640806,-500.0,0.00015,7]
[340667618,1729620640815,-500.0,0.00015,7]
[340667619,1729620640824,-500.0,0.00015,7]
[340667620,1729620640833,-500.0,0.00015,7]
[340667621,1729620640843,-500.0,0.00015,7]
[340667622,1729620640852,-500.0,0.00015,7]
[340667623,1729620640861,-500.0,0.00015,7]
[340667624,1729620640870,-319.84,0.00015,7]
[340667625,1729620640880,-658.340808,0.00015,2]
[340667626,1729620640890,-153.0,0.00015141,2]
[340667627,1729620640899,-186.730485,0.00015268,2]
[340667628,1729620640908,-421.488898,0.00015278,2]
[340667629,1729620640918,-1012.84180073,0.0001564,2]
[340667630,1729620640929,-420.0,0.0001566,2]
[340667631,1729620640939,-8891.17465365,0.00015722,2]
[340667632,1729620640948,-420.0,0.00015728,2]
[340667633,1729620640957,-151.78012079,0.0001587,2]
[340667634,1729620640966,-250.0,0.0001589,2]
[340667635,1729620640976,-1984.62567489,0.000159,2]
[340667636,1729620640985,-39399.53152088,0.0001597,2]
[340667649,1729620646678,-1200.0,0.0001597,2]
[340667650,1729620646702,-2760.71699322,0.0001597,2]
[340667690,1729621831893,-300.0,0.00013904,2]
[340667691,1729621831902,-300.0,0.00013904,2]
[340667692,1729621831912,-3935.27553456,0.00013905,2]
[340667696,1729621838037,-413.12150998,0.00013905,2]
[340667697,1729621838049,-1263.34544235,0.00013905,2]
[340667705,1729621839911,-503.01188397,0.00013905,2]
[340667706,1729621839927,-7991.00359548,0.00013905,2]
[340667722,1729621842933,-783.58158272,0.00013905,2]
[340667723,1729621843082,-10010.66045094,0.00013905,2]
[340667724,1729621843092,-200.0,0.00013973,2]
[340667725,1729621843103,-380.0,0.00013973,2]
[340667726,1729621843113,-503.47417406,0.00014,2]
[340667727,1729621843124,-222.9319011,0.00014129,2]
[340667728,1729621843135,-200.0000017,0.00014583,2]
[340667729,1729621843146,-1298.4581176,0.000152,2]
[340667730,1729621843156,-374.91930326,0.00015234,2]
[340667733,1729621845881,-45.08069674,0.00015234,2]
[340667734,1729621845891,-420.0,0.00015295,2]
[340667735,1729621845901,-210.744449,0.00015378,2]
[340667736,1729621845911,-157.18935272,0.00015497,2]
[340667737,1729621845921,-500.0,0.00015497,2]
[340667738,1729621845931,-500.0,0.00015497,2]
[340667739,1729621845941,-500.0,0.00015497,2]
[340667740,1729621845950,-500.0,0.00015497,2]
[340667741,1729621845960,-500.0,0.00015497,2]
[340667742,1729621845969,-500.0,0.00015497,2]
[340667743,1729621845979,-500.0,0.00015497,2]
[340667744,1729621845988,-500.0,0.00015497,2]
[340667745,1729621845997,-274.57569169,0.00015497,2]
[340667746,1729621846007,-500.0,0.00015497,2]
[340667747,1729621846017,-534.01549298,0.00015498,2]
[340667748,1729621846027,-210.744449,0.00015616,2]
[340667749,1729621846037,-1298.4581176,0.000157,2]
[340667750,1729621846046,-8891.17465365,0.00015745,2]
[340667751,1729621846055,-1178.0,0.00015758,2]
[340667752,1729621846065,-151.78012078,0.0001587,2]
[340667753,1729621846075,-822.67070525,0.0001588,2]
[340667754,1729621846090,-215.118,0.0001589,2]
[340667755,1729621846099,-1000.0,0.0001589,2]
[340667756,1729621846109,-250.0,0.0001589,2]
[340667757,1729621846118,-1786.16310741,0.000159,2]
[340667758,1729621846128,-1000.0,0.000159,2]
[340667759,1729621846138,-580.91879829,0.00015969,2]
[340667760,1729621846147,-500.0,0.00015969,2]
[340667761,1729621846156,-466.45288517,0.00015969,2]
[340667762,1729621846166,-500.0,0.00015969,2]
[340667763,1729621846175,-500.0,0.00015969,2]
[340667764,1729621846185,-284.796516,0.00015969,2]
[340667765,1729621846194,-176.51701961,0.00015969,2]
[340667766,1729621846204,-151.0,0.0001597,2]
[340667767,1729621846214,-151.0,0.0001597,2]
[340667768,1729621846223,-151.0,0.0001597,2]
[340667769,1729621846233,-218.008485,0.0001597,2]
[340667770,1729621846242,-218.008485,0.0001597,2]
[340667771,1729621846252,-126084.478655,0.0001597,2]
[340667772,1729621846261,-6092.44116252,0.0001597,2]
[340667773,1729621903462,167.0,0.00022,60]
[340667775,1729622432816,-400.0,0.00013973,2]
[340667776,1729622432844,-167.0,0.0001463,2]
[340667777,1729622432869,-300.0,0.00014912,2]
[340667778,1729622432894,-300.0,0.00014912,2]
[340667779,1729622432920,-24900.0,0.00014913,2]
[340667780,1729622432947,-779.0748706,0.000152,2]
[340667781,1729622432973,-172.094,0.0001566,2]
[340667782,1729622432999,-8891.17465365,0.00015698,2]
[340667783,1729622433026,-356.01032865,0.00015698,2]
[340667784,1729622433051,-779.0748706,0.000157,2]
[340667785,1729622433077,-2397.0,0.00015758,2]
[340667786,1729622433106,-530.50841019,0.00015789,2]
[340667787,1729622433132,-538.87511076,0.0001588,2]
[340667788,1729622433157,-250.0,0.0001589,2]
[340667789,1729622433182,-1607.54679666,0.00015939,2]
[340667790,1729622433207,-438.15694912,0.00015969,2]
[340667791,1729622433236,-500.0,0.00015973,2]
[340667792,1729622433261,-273.56191373,0.00015979,2]
[340667793,1729622433290,-406.6431588,0.00015979,2]
[340667794,1729622433315,-500.0,0.00015979,2]
[340667795,1729622433342,-249.3575612,0.00015979,2]
[340667796,1729622433367,-500.0,0.00015979,2]
[340667797,1729622433392,-151.0,0.0001598,2]
[340667798,1729622433417,-151.0,0.0001598,2]
[340667799,1729622433442,-151.0,0.0001598,2]
[340667800,1729622433467,-151.0,0.0001598,2]
[340667801,1729622433492,-169.10232,0.0001598,2]
[340667802,1729622433516,-406.0,0.0001598,2]
[340667803,1729622433543,-65584.81905604,0.0001598,2]
[340667845,1729623032061,-300.0,0.00014946,2]
[340667847,1729623032071,-300.0,0.00014946,2]
[340667849,1729623032082,-16635.2579953,0.00014947,2]
[340667851,1729623032091,-500.0,0.000152,2]
[340667853,1729623032101,-500.0,0.000157,2]
[340667855,1729623032111,-4449.70221258,0.00015808,2]
[340667857,1729623032121,-237.3402191,0.00015854,2]
[340667859,1729623032135,-9346.4930981,0.00015854,2]
[340667861,1729623032145,-484.98759972,0.00015889,2]
[340667863,1729623032154,-250.0,0.0001589,2]
[340667864,1729623032164,-1446.79211694,0.000159,2]
[340667866,1729623032173,-4000.0,0.0001592,2]
[340667868,1729623032184,-12052.60408577,0.0001593,2]
[340667870,1729623032197,-31615.09574201,0.0001593,2]
[340667888,1729623038224,-7088.90515642,0.0001593,2]
[340667919,1729623038509,-774.3734493,0.0001593,2]
[340667921,1729623038521,-6879.66177473,0.0001593,2]
[340667923,1729623038533,-15695.35269558,0.0001593,2]
[340667925,1729623038543,-500.0,0.00015954,2]
[340667927,1729623038552,-191.49333961,0.00015954,2]
[340667929,1729623038562,-284.65021116,0.00015954,2]
[340667931,1729623038571,-374.55029284,0.00015954,2]
[340667933,1729623038581,-21937.6547783,0.00015955,2]
[340667935,1729623038597,-4397.31813942,0.00015955,2]
[340667958,1729623040122,-367.92274686,0.00015955,2]
[340667959,1729623040131,-151.026,0.00015965,2]
[340667960,1729623040140,-527.0,0.00015965,2]
[340667961,1729623040150,-1152.0,0.00015965,2]
[340667963,1729623040160,-2397.0,0.00015965,2]
[340667965,1729623040169,-73.03689641,0.00015965,2]
[340667968,1729623040199,-99.77510359,0.00015965,2]
[340667970,1729623040208,-151.0,0.0001597,2]
[340667972,1729623040218,-151.0,0.0001597,2]
[340667973,1729623040227,-151.0,0.0001597,2]
[340667975,1729623040237,-192.105763,0.0001597,2]
[340667976,1729623040246,-192.105763,0.0001597,2]
[340667978,1729623040256,-151.0,0.0001597,2]
[340667980,1729623040267,-151.0,0.0001597,2]
[340667982,1729623040276,-133.39337041,0.0001597,2]
[340668008,1729623043161,-188.004,0.00015965,2]
[340668009,1729623043171,-128.13725459,0.0001597,2]
[340668010,1729623043181,-151.0,0.0001597,2]
[340668011,1729623043191,-594.63372391,0.0001597,2]
[340668013,1729623043300,-40434.18051653,0.0001597,2]
[340668026,1729623046152,-1000.0,0.0001597,2]
[340668067,1729624232284,-291.0020642,0.00013973,2]
[340668069,1729624232297,-108.9979358,0.00013973,2]
[340668071,1729624232307,-443.0020642,0.00014897,2]
[340668074,1729624232320,-3538.5160957,0.00014897,2]
[340668076,1729624232331,-956.088784,0.00014897,2]
[340668078,1729624232340,-500.0,0.000152,2]
[340668079,1729624232350,-325.17400964,0.000157,2]
[340668080,1729624232362,-433.90707799,0.000157,2]
[340668101,1729624238403,-78.14352437,0.000157,2]
[340668103,1729624238412,-394.45419147,0.00015818,2]
[340668106,1729624238425,-601.65551485,0.00015818,2]
[340668110,1729624238455,-7182.0717545,0.00015818,2]
[340668112,1729624238465,-436.48883973,0.00015828,2]
[340668114,1729624238474,-300.0,0.0001588,2]
[340668116,1729624238483,-300.0,0.0001588,2]
[340668117,1729624238493,-6857.68209053,0.00015881,2]
[340668119,1729624238503,-1093.91300254,0.00015884,2]
[340668121,1729624238512,-1093.91300254,0.0001589,2]
[340668123,1729624238522,-250.0,0.0001589,2]
[340668125,1729624238531,-1093.91300254,0.00015895,2]
[340668126,1729624238540,-500.0,0.00015899,2]
[340668127,1729624238549,-500.0,0.00015899,2]
[340668128,1729624238560,-500.0,0.00015899,2]
[340668129,1729624238569,-500.0,0.00015899,2]
[340668130,1729624238578,-500.0,0.00015899,2]
[340668131,1729624238587,-342.08358038,0.00015899,2]
[340668132,1729624238596,-500.0,0.00015899,2]
[340668133,1729624238606,-5000.0,0.000159,2]
[340668134,1729624238616,-1093.91300254,0.000159,2]
[340668135,1729624238625,-1000.0,0.000159,2]
[340668136,1729624238635,-421.2395848,0.000159,2]
[340668137,1729624238645,-239.87710548,0.000159,2]
[340668138,1729624238654,-4000.0,0.00015918,2]
[340668139,1729624238665,-1302.1129053,0.00015928,2]
[340668140,1729624238674,-250.0,0.00015965,2]
[340668141,1729624238686,-150.908,0.00015965,2]
[340668142,1729624238696,-527.0,0.00015965,2]
[340668143,1729624238706,-1152.0,0.00015965,2]
[340668144,1729624238715,-2397.0,0.00015965,2]
[340668145,1729624238726,-168.682,0.00015967,2]